bitfinex/quotes_ETHUSD_20251028
["timestamp","ask_amount","ask_price","bid_price","bid_amount"]
[1761684945086,2.96348435,3985.2,3985.1,2.312]
[1761684945243,0.4542,3985.2,3985.1,0.002]
[1761684945780,2.5091759,3985.4,3985.1,0.002]
[1761684946142,2.50910909,3985.5,3985.1,0.002]
[1761684946487,2.50904417,3985.6,3985.1,0.002]
[1761684946689,0.405504,3986.4,3985.1,0.002]
[1761684946982,2.50904369,3985.6,3985.1,0.002]
[1761684947895,2.50920406,3985.4,3985.1,0.002]
[1761684948113,0.0296,3985.5,3985.1,0.002]
[1761684948317,0.0296,3985.4,3985.1,0.002]
[1761684950915,2.91478835,3985.2,3985.1,0.002]
[1761684951213,0.0296,3985.4,3985.1,0.002]
[1761684951410,2.53883599,3985.3,3985.1,0.002]
[1761684951583,2.53883275,3985.3,3985.1,0.002]
[1761684951795,0.0296,3985.2,3985.1,0.002]
[1761684952583,2.53888435,3985.2,3985.1,0.002]
[1761684952970,0.0296,3985.2,3985.1,0.002]
[1761684953175,0.0296,3985.2,3985.1,2.312]
[1761684953377,2.50927254,3985.3,3985.1,2.312]
[1761684953687,2.53888435,3985.2,3985.1,2.312]
[1761684953889,0.0296,3985.2,3985.1,2.312]
[1761684954084,4.0643392,3985.5,3985.1,2.312]
[1761684954292,2.53876372,3985.4,3985.1,2.312]
[1761684954568,12.57,3986.5,3985.1,2.312]
[1761684954569,0.1248,3986.6,3985.2,1.9966]
[1761684954768,0.1248,3986.6,3985.8,2.50887885]
[1761684954983,0.1248,3986.3,3985.9,4.81883726]
[1761684955182,0.2146,3986.9,3985.9,2.31]
[1761684955183,0.0296,3986.5,3985.9,2.31]
[1761684955379,0.1248,3986.1,3985.9,2.31]
[1761684955769,0.0296,3986.0,3985.9,2.31]
[1761684957103,2.53838073,3986.0,3985.9,2.31]
[1761684957303,0.0296,3986.0,3985.9,2.31]
[1761684958504,2.53838073,3986.0,3985.9,2.31]
[1761684958705,0.0296,3986.0,3985.9,2.31]
[1761684959408,2.50888655,3985.9,3985.1,0.3558]
[1761684959607,0.1248,3985.3,3985.1,0.002]
[1761684959905,0.1248,3985.3,3985.2,2.309]
[1761684960808,0.1248,3985.3,3985.1,0.002]
[1761684960809,2.50928435,3985.2,3985.1,0.002]
[1761684961106,0.0296,3985.2,3985.1,0.002]
[1761684961713,2.53888435,3985.2,3985.1,0.002]
[1761684962583,4.49958835,3985.2,3985.1,0.002]
[1761684962770,6.80858835,3985.2,3985.1,0.002]
[1761684964545,4.49958835,3985.2,3985.1,0.002]
[1761684964841,6.80858835,3985.2,3985.1,0.002]
[1761684965441,6.80858835,3985.2,3984.3,0.002]
[1761684965442,2.91529217,3984.4,3984.3,0.002]
[1761684965646,21.28508518,3984.4,3984.3,0.002]
[1761684965827,21.38408518,3984.4,3984.3,0.002]
[1761684966541,4.56949217,3984.4,3984.3,0.002]
[1761684967049,2.059704,3984.4,3984.3,0.002]
[1761684967346,4.56949217,3984.4,3984.3,0.002]
[1761684968447,6.87849217,3984.4,3984.3,0.002]
[1761684969956,21.38408518,3984.4,3984.3,0.002]
[1761684971435,2.91554416,3984.0,3983.9,0.002]
[1761684971638,6.77974416,3984.0,3983.9,0.002]
[1761684971839,6.87874416,3984.0,3983.9,0.002]
[1761684973651,2.51004016,3984.0,3983.9,0.002]
[1761684974277,2.60904016,3984.0,3983.9,0.002]
[1761684974576,5.32454416,3984.0,3983.9,0.002]
[1761684974777,6.87974416,3984.0,3983.9,0.002]
[1761684975272,6.78074416,3984.0,3983.9,0.002]
[1761684976080,6.87974416,3984.0,3983.9,0.002]
[1761684977140,4.47074416,3984.0,3983.9,0.002]
[1761684977447,2.51004016,3984.0,3983.9,0.002]
[1761684978139,0.1459,3984.7,3983.9,0.002]
[1761684978368,2.50999061,3984.1,3983.9,0.002]
[1761684978867,0.1454,3985.0,3983.9,0.4653]
[1761684979077,2.50999634,3984.1,3983.9,0.4653]
[1761684980041,0.405504,3984.7,3983.9,0.4653]
[1761684980278,2.50999699,3984.1,3983.9,0.4653]
[1761684980443,2.509843,3984.4,3983.9,0.4653]
[1761684980640,2.51004016,3984.0,3983.9,0.4653]
[1761684981174,2.50995752,3984.2,3983.9,0.4653]
[1761684981374,12.76898294,3985.7,3984.1,0.2201]
[1761684981375,0.406504,3985.2,3984.1,0.2201]
[1761684981540,2.50978259,3984.5,3984.1,0.2201]
[1761684981742,2.50967377,3984.6,3984.1,0.2201]
[1761684981937,2.5098325,3984.4,3984.1,0.6834]
[1761684982342,2.5098325,3984.4,3984.2,0.4633]
[1761684982848,2.50980308,3984.4,3984.2,0.4633]
[1761684983048,0.405504,3985.0,3984.2,0.4633]
[1761684983253,2.50983608,3984.4,3984.2,0.4633]
[1761684983665,0.406504,3985.2,3984.2,0.4633]
[1761684983861,2.50972977,3984.5,3984.2,0.4633]
[1761684984178,2.50966874,3984.6,3984.2,0.4633]
[1761684984380,2.50972541,3984.5,3984.2,0.4633]
[1761684984679,2.50983909,3984.4,3984.2,0.4633]
[1761684984874,1.960704,3985.1,3984.2,0.4633]
[1761684985361,2.50959921,3984.7,3984.2,0.4633]
[1761684985562,2.50977473,3984.5,3984.2,0.4633]
[1761684986206,0.001,3985.2,3984.2,0.4633]
[1761684986561,2.50966746,3984.6,3984.2,0.4633]
[1761684987192,2.50974226,3984.5,3984.2,0.4633]
[1761684987766,2.50966368,3984.6,3984.2,0.4633]
[1761684988094,2.5095926,3984.8,3984.2,0.4633]
[1761684988306,2.50975478,3984.5,3984.2,0.4633]
[1761684988508,2.50959781,3984.8,3984.2,0.4633]
[1761684988713,2.50971379,3984.6,3984.2,0.4633]
[1761684989002,0.1248,3984.2,3984.1,0.002]
[1761684989571,0.1248,3984.2,3984.1,0.4653]
[1761684991868,0.1248,3984.2,3984.1,2.97527715]
[1761684992076,0.001,3984.5,3984.4,2.50978817]
[1761684992288,0.001,3984.5,3984.4,3.09788817]
[1761684992692,0.001,3984.5,3984.4,4.67818605]
[1761684993021,0.001,3984.5,3984.4,4.65308817]
[1761684993240,0.001,3984.5,3984.4,6.96208817]
[1761684993447,0.001,3984.5,3984.4,8.16952238]
[1761684996716,0.001,3984.5,3984.4,4.30532238]
[1761684997030,0.001,3984.5,3984.4,6.48852238]
[1761684997648,0.001,3984.5,3984.3,2.50984271]
[1761684997854,0.001,3984.5,3984.4,2.308]
[1761684999336,0.001,3984.5,3984.4,5.28108817]
[1761684999919,0.001,3984.5,3984.4,4.81778817]
[1761685000817,0.001,3984.5,3984.4,2.308]
[1761685001347,0.001,3984.5,3984.4,4.81778817]
[1761685002013,0.001,3984.5,3984.4,2.308]
[1761685002636,0.001,3984.5,3984.1,0.002]
[1761685002839,2.50983333,3984.4,3984.1,0.002]
[1761685003027,2.5107533,3984.5,3984.1,0.002]
[1761685003439,2.5097933,3984.4,3984.1,0.002]
[1761685003945,2.50979914,3984.4,3984.1,0.002]
[1761685004311,2.60974097,3984.5,3984.1,0.002]
[1761685004517,2.50979916,3984.4,3984.1,0.002]
[1761685005712,2.51073672,3984.5,3984.1,0.002]
[1761685005947,2.60885152,3984.3,3984.1,0.002]
[1761685008343,2.50991416,3984.2,3984.1,0.002]
[1761685009073,0.001,3984.5,3984.1,0.002]
[1761685009260,0.1248,3984.2,3984.1,0.002]
[1761685011990,2.63471416,3984.2,3984.1,0.002]
[1761685012146,4.16411416,3984.2,3984.1,0.002]
[1761685012346,4.06511416,3984.2,3984.1,0.002]
[1761685012773,4.16411416,3984.2,3984.1,0.002]
[1761685013350,1.6542,3984.2,3984.1,0.002]
[1761685013558,4.06511416,3984.2,3984.1,0.002]
[1761685014952,0.001,3984.5,3984.1,0.002]
[1761685015279,0.001,3984.5,3984.2,2.307]
[1761685015572,2.50991416,3984.2,3984.1,0.002]
[1761685015788,2.60891416,3984.2,3984.1,0.002]
[1761685016396,2.50991416,3984.2,3984.1,0.002]
[1761685016564,2.60891416,3984.2,3984.1,0.002]
[1761685016892,4.56961816,3984.2,3984.1,0.002]
[1761685017278,4.06511416,3984.2,3984.1,0.002]
[1761685018184,2.50991416,3984.2,3984.1,0.002]
[1761685019412,2.5099125,3984.3,3984.1,0.002]
[1761685019574,2.50991416,3984.2,3984.1,0.002]
[1761685019780,2.50985652,3984.3,3984.1,0.002]
[1761685020202,2.50991416,3984.2,3984.1,0.002]
[1761685020421,0.001,3984.5,3984.1,0.6648]
[1761685020711,0.001,3984.5,3984.1,0.002]
[1761685020895,2.50991416,3984.2,3984.1,0.002]
[1761685021599,2.50987165,3984.3,3984.1,0.002]
[1761685021800,2.50985962,3984.3,3984.1,0.002]
[1761685021997,2.50991416,3984.2,3984.1,0.002]
[1761685022666,4.56961816,3984.2,3984.1,0.002]
[1761685023091,19.48304986,3984.2,3984.1,0.002]
[1761685026120,19.48304986,3984.2,3983.7,0.002]
[1761685026121,4.47087017,3983.8,3983.7,0.002]
[1761685026294,6.77687017,3983.8,3983.7,0.002]
[1761685026496,7.20927017,3983.8,3983.7,0.002]
[1761685026944,7.20927017,3983.8,3983.3,0.002]
[1761685026945,2.91592223,3983.4,3983.3,0.002]
[1761685027089,21.69055393,3983.4,3983.3,0.002]
[1761685027289,21.90845393,3983.4,3983.3,0.002]
[1761685028883,2.51041823,3983.4,3983.3,0.002]
[1761685029112,2.306,3984.0,3983.3,0.002]
[1761685029508,2.51035594,3983.5,3983.3,0.002]
[1761685030296,2.51041823,3983.4,3983.3,0.002]
[1761685030537,4.47112223,3983.4,3983.3,0.002]
[1761685030691,4.68792223,3983.4,3983.3,0.002]
[1761685030895,2.51069042,3983.0,3982.4,0.4163]
[1761685031109,0.622304,3983.4,3982.4,0.4163]
[1761685031672,2.5107749,3982.9,3982.4,0.4163]
[1761685032013,3.13277546,3983.4,3982.4,0.4163]
[1761685032236,0.405504,3983.2,3982.0,0.2248]
[1761685032409,2.51079293,3982.9,3982.1,2.51119206]
[1761685032611,2.51059009,3983.2,3982.0,0.50078]
[1761685032801,1.5552,3983.6,3982.0,0.50078]
[1761685033003,2.305,3983.7,3982.8,2.51074353]
[1761685033334,2.6716,3984.2,3982.9,0.4643]
[1761685033554,0.001,3984.3,3983.5,2.51029961]
[1761685033699,0.001,3984.3,3983.6,0.6114]
[1761685033898,0.001,3984.3,3983.8,2.51015458]
[1761685034141,0.001,3984.3,3983.8,2.5101492]
[1761685034343,0.001,3984.3,3984.2,0.2284]
[1761685034910,0.001,3984.3,3983.9,0.4643]
[1761685035529,0.001,3984.3,3983.7,2.305]
[1761685035726,0.001,3984.3,3983.8,0.4643]
[1761685036021,0.1248,3984.2,3983.8,2.97445538]
[1761685036543,2.51086802,3984.3,3983.7,2.305]
[1761685036748,2.51086802,3984.3,3984.2,0.1435]
[1761685036749,0.001,3984.3,3984.2,0.1435]
[1761685037212,0.001,3984.3,3984.2,0.6078]
[1761685037408,0.001,3984.3,3984.2,3.11771416]
[1761685037629,0.001,3984.3,3984.2,0.6078]
[1761685038644,0.001,3984.3,3984.2,3.68050007]
[1761685040114,0.001,3984.3,3984.2,2.9128]
[1761685040310,0.001,3984.3,3984.2,0.6078]
[1761685040510,0.001,3984.3,3984.2,2.9128]
[1761685041951,0.001,3984.3,3984.2,2.4485]
[1761685042534,0.001,3984.3,3984.2,5.42271416]
[1761685042739,0.001,3984.3,3984.2,6.21598503]
[1761685046557,0.001,3984.3,3984.2,6.34078503]
[1761685048541,0.001,3984.3,3984.2,0.1248]
[1761685048745,0.001,3984.3,3983.4,2.73881138]
[1761685048932,2.5108932,3984.3,3983.8,2.303]
[1761685049130,2.5100708,3984.0,3983.8,2.303]
[1761685049335,2.50995844,3984.2,3983.8,2.303]
[1761685049530,2.50998145,3984.1,3983.8,2.303]
[1761685050563,2.5099298,3984.2,3983.8,2.303]
[1761685051162,2.51089699,3984.3,3983.8,2.303]
[1761685051329,2.51001079,3984.1,3983.8,2.303]
[1761685051824,2.51089699,3984.3,3983.8,2.303]
[1761685052030,2.50998338,3984.1,3983.8,2.303]
[1761685052432,0.113,3984.1,3983.8,2.303]
[1761685052633,2.51005559,3984.0,3983.8,2.303]
[1761685052971,2.51010316,3983.9,3983.8,2.303]
[1761685053280,2.51021223,3983.8,3983.6,2.303]
[1761685053431,2.51022918,3983.7,3983.6,2.303]
[1761685053828,2.51022918,3983.7,3983.3,0.002]
[1761685053829,2.51041823,3983.4,3983.3,0.002]
[1761685054333,2.62341823,3983.4,3983.3,0.002]
[1761685059580,4.17861823,3983.4,3983.3,0.002]
[1761685060164,4.58412223,3983.4,3983.3,0.002]
[1761685060577,6.88612223,3983.4,3983.3,0.002]
[1761685061649,6.88712223,3983.4,3983.3,0.002]
[1761685064085,4.06661823,3983.4,3983.3,0.002]
[1761685064401,0.001,3983.4,3983.3,0.002]
[1761685064579,0.001,3983.4,3983.3,0.4739]
[1761685064789,0.001,3983.4,3983.3,1.02510254]
[1761685065173,0.001,3983.4,3983.3,0.002]
[1761685065781,2.51141823,3983.4,3983.3,0.002]
[1761685065977,0.001,3983.4,3983.3,0.4739]
[1761685067201,0.001,3983.4,3983.3,0.002]
[1761685067998,0.001,3983.4,3983.3,0.4739]
[1761685071418,2.51141823,3983.4,3983.3,0.002]
[1761685073107,0.001,3983.4,3983.3,0.002]
[1761685075331,0.001,3983.4,3983.3,2.98438125]
[1761685075620,0.001,3983.4,3983.3,3.31785938]
[1761685075825,0.001,3983.4,3983.3,0.80737813]
[1761685075977,0.001,3983.4,3983.3,0.4739]
[1761685076312,0.001,3983.4,3983.3,2.98438125]
[1761685077322,0.001,3983.4,3983.3,2.93438125]
[1761685078804,0.001,3983.4,3983.1,0.1248]
[1761685079004,0.001,3983.4,3983.2,2.51053858]
[1761685079528,0.001,3983.4,3983.3,2.51048125]
[1761685079704,0.001,3983.4,3983.1,0.5967]
[1761685079913,0.001,3983.4,3983.2,0.4719]
[1761685080314,0.001,3983.4,3983.2,2.98243101]
[1761685080708,0.001,3983.4,3983.0,0.2256]
[1761685080914,0.001,3983.4,3983.3,2.3]
[1761685082324,2.51141823,3983.4,3983.3,2.3]
[1761685082712,0.001,3983.4,3983.3,2.3]
[1761685082910,2.51141823,3983.4,3983.3,2.3]
[1761685083299,0.001,3983.4,3983.3,2.3]
[1761685085392,2.51141823,3983.4,3983.3,2.3]
[1761685085708,0.001,3983.4,3983.3,2.3]
[1761685087140,2.51141823,3983.4,3983.3,2.3]
[1761685091033,2.51067034,3983.0,3982.9,0.002]
[1761685094420,0.001,3983.4,3982.9,0.6667]
[1761685094601,0.001,3983.4,3983.2,0.1804]
[1761685094803,0.001,3983.4,3983.3,2.7326]
[1761685095003,0.001,3983.4,3983.3,2.298]
[1761685095639,0.001,3983.4,3983.3,5.24308125]
[1761685095804,0.001,3983.4,3983.3,2.7326]
[1761685100741,0.001,3983.4,3983.3,2.7346]
[1761685100934,0.001,3983.4,3983.3,3.52732623]
[1761685101546,0.001,3983.4,3983.3,2.7346]
[1761685101933,0.001,3983.4,3983.3,5.24508125]
[1761685102313,0.001,3983.4,3983.3,2.7346]
[1761685103650,0.001,3983.4,3983.3,5.27018606]
[1761685103836,0.001,3983.4,3983.3,5.24508125]
[1761685104143,0.001,3983.4,3983.3,6.05027516]
[1761685106443,0.001,3983.4,3983.3,7.73027516]
[1761685107115,0.001,3983.8,3983.7,2.51022918]
[1761685107319,0.001,3983.8,3983.7,11.4021473]
[1761685107556,0.001,3983.8,3983.7,11.8367473]
[1761685107857,0.001,3983.8,3983.7,18.81771775]
[1761685108053,0.001,3983.8,3983.7,13.90179963]
[1761685109352,0.001,3983.8,3983.7,18.81771775]
[1761685109852,0.001,3983.8,3983.7,13.90179963]
[1761685110843,0.001,3983.8,3983.7,18.81771775]
[1761685112440,1e-08,3984.5,3984.4,4.29948817]
[1761685112641,1e-08,3984.5,3984.4,7.76701569]
[1761685112949,1e-08,3984.5,3984.4,8.20161569]
[1761685113329,1e-08,3984.5,3984.4,5.90661569]
[1761685113536,1e-08,3984.5,3984.4,6.21181569]
[1761685113723,1e-08,3984.5,3984.4,6.64641569]
[1761685115353,1e-08,3984.5,3984.4,6.86421569]
[1761685115751,1e-08,3984.5,3984.4,4.56921569]
[1761685115929,1e-08,3984.5,3984.4,6.86421569]
[1761685117353,1e-08,3984.5,3984.4,4.56921569]
[1761685117822,1e-08,3984.5,3984.4,6.19411569]
[1761685119050,1e-08,3984.5,3984.4,6.62871569]
[1761685119257,1e-08,3984.5,3984.4,2.72758817]
[1761685119559,1e-08,3984.5,3984.4,4.80378817]
[1761685119853,1e-08,3984.5,3984.4,5.23788817]
[1761685120643,1e-08,3984.5,3984.4,4.80378817]
[1761685123058,1e-08,3984.5,3984.4,2.294]
[1761685123359,1e-08,3984.5,3984.4,4.80378817]
[1761685124366,1e-08,3984.5,3984.4,2.293]
[1761685124864,0.11160001,3984.5,3984.4,2.293]
[1761685127065,1e-08,3984.5,3984.4,2.293]
[1761685127854,1e-08,3984.5,3984.4,4.80278817]
[1761685128027,1e-08,3984.5,3984.4,2.293]
[1761685129543,0.11160001,3984.5,3984.4,2.293]
[1761685130561,5.02751813,3984.5,3984.4,2.293]
[1761685130764,5.02751813,3984.5,3983.3,0.002]
[1761685130765,0.11270001,3984.5,3983.3,0.002]
[1761685130970,2.50992966,3984.2,3983.5,2.51030684]
[1761685131170,2.50991676,3984.2,3983.6,2.51025008]
[1761685131480,2.50991676,3984.2,3983.7,2.292]
[1761685131961,2.62269278,3984.1,3983.7,2.292]
[1761685132144,0.1127,3984.1,3983.7,2.292]
[1761685132899,0.1127,3984.4,3983.7,4.80221931]
[1761685133258,2.50985396,3984.3,3983.7,2.292]
[1761685133668,1e-08,3984.5,3983.7,3.02326715]
[1761685133966,1e-08,3984.5,3984.3,2.50983506]
[1761685134184,1e-08,3984.5,3983.8,0.4341]
[1761685134185,1e-08,3984.5,3984.4,4.80178817]
[1761685134793,0.11390001,3984.5,3983.6,0.002]
[1761685135098,4.91591812,3984.0,3983.8,2.292]
[1761685135391,7.42599943,3984.0,3983.8,2.292]
[1761685135689,0.1139,3983.9,3983.8,2.292]
[1761685137382,0.1139,3984.2,3983.8,2.292]
[1761685140196,1e-08,3984.5,3983.8,2.7261]
[1761685140394,0.11390001,3984.5,3983.9,2.51010316]
[1761685140610,1e-08,3984.5,3983.9,2.51010316]
[1761685140784,0.1248,3984.4,3984.0,2.51004016]
[1761685140986,1e-08,3984.5,3984.1,2.291]
[1761685141191,1e-08,3984.5,3984.4,2.50978817]
[1761685141390,1e-08,3984.5,3984.4,4.80078817]
[1761685141779,1e-08,3984.5,3984.4,5.35968817]
[1761685141978,1e-08,3984.5,3984.4,6.1680984]
[1761685142791,1e-08,3984.5,3984.4,5.7339984]
[1761685142982,1e-08,3984.5,3984.4,0.1248]
[1761685143186,2.29890401,3984.5,3983.6,2.293]
[1761685143422,2.51022918,3983.7,3983.6,0.002]
[1761685143583,4.91591812,3983.8,3983.7,2.291]
[1761685143917,2.51016617,3983.8,3983.7,2.291]
[1761685144279,2.62176617,3983.8,3983.7,2.291]
[1761685144481,0.2277,3984.3,3983.7,2.291]
[1761685144799,0.2277,3984.3,3983.8,2.51010523]
[1761685145112,0.2277,3984.3,3983.7,2.291]
[1761685145323,0.1127,3984.2,3983.7,2.291]
[1761685145515,2.5100871,3984.0,3983.7,2.291]
[1761685145717,0.1127,3984.1,3983.7,2.291]
[1761685146219,2.62271875,3984.1,3983.7,2.291]
[1761685146419,0.1127,3984.1,3983.7,2.291]
[1761685148625,2.51008911,3984.0,3983.7,2.291]
[1761685149026,0.1127,3983.9,3983.6,0.002]
[1761685149230,0.1127,3983.9,3983.7,1.878]
[1761685149395,2.51017174,3983.8,3983.7,1.878]
[1761685149907,2.62287174,3983.8,3983.7,1.878]
[1761685151226,2.51022918,3983.7,3983.6,0.002]
[1761685151424,2.62292918,3983.7,3983.6,0.002]
[1761685153328,0.1127,3983.7,3983.6,0.002]
[1761685153527,2.62292918,3983.7,3983.6,0.002]
[1761685156546,0.1127,3983.7,3983.6,0.002]
[1761685157045,2.62292918,3983.7,3983.6,0.002]
[1761685159321,0.1248,3983.6,3983.4,2.282]
[1761685159520,2.63512215,3983.6,3983.4,2.282]
[1761685159744,2.74779599,3983.6,3983.4,2.282]
[1761685160046,0.1127,3983.5,3983.4,2.282]
[1761685161417,2.62305521,3983.5,3983.4,2.282]
[1761685161952,0.1127,3983.5,3983.4,2.282]
[1761685162148,0.1248,3983.6,3983.4,2.282]
[1761685162364,0.2375,3983.6,3983.4,2.282]
[1761685162864,0.1248,3983.6,3983.4,2.282]
[1761685163361,2.51035521,3983.5,3983.4,2.282]
[1761685163866,2.62305521,3983.5,3983.4,2.282]
[1761685164255,2.51041823,3983.4,3983.3,0.002]
[1761685164458,4.06561823,3983.4,3983.3,0.002]
[1761685164760,4.17831823,3983.4,3983.3,0.002]
[1761685165143,0.1127,3983.4,3983.3,0.002]
[1761685165338,2.62311823,3983.4,3983.3,0.002]
[1761685167550,2.51041823,3983.4,3983.3,0.002]
[1761685168563,2.51037415,3983.5,3983.3,0.002]
[1761685169082,2.51035951,3983.5,3983.3,0.002]
[1761685169556,0.001,3983.6,3983.3,0.002]
[1761685169894,0.001,3983.6,3983.4,2.289]
[1761685170401,0.001,3983.6,3983.4,2.737]
[1761685170974,0.001,3983.6,3983.4,2.289]
[1761685171599,0.001,3983.6,3983.4,2.737]
[1761685171760,0.001,3983.6,3983.5,0.448]
[1761685171959,0.001,3983.6,3983.4,2.289]
[1761685172272,0.1127,3983.5,3983.3,0.002]
[1761685172474,2.51041823,3983.4,3983.3,0.002]
[1761685172689,4.06561823,3983.4,3983.3,0.002]
[1761685173095,4.17831823,3983.4,3983.3,0.002]
[1761685179889,1.6679,3983.4,3983.3,0.002]
[1761685180208,4.17831823,3983.4,3983.3,0.002]
[1761685180421,10.48619662,3983.4,3983.3,0.002]
[1761685181219,10.61562146,3983.4,3983.3,0.002]
[1761685181422,10.48619662,3983.4,3983.3,0.002]
[1761685181920,2.91642651,3982.6,3982.5,0.002]
[1761685182077,10.3740009,3982.6,3982.5,0.002]
[1761685182420,10.4899009,3982.6,3982.5,0.002]
[1761685185492,2.51123778,3982.1,3982.0,0.002]
[1761685185697,4.47194178,3982.1,3982.0,0.002]
[1761685186597,4.58784178,3982.1,3982.0,0.002]
[1761685187402,4.47194178,3982.1,3982.0,0.002]
[1761685187780,4.06643778,3982.1,3982.0,0.002]
[1761685191294,4.18233778,3982.1,3982.0,0.002]
[1761685192186,4.06643778,3982.1,3982.0,0.002]
[1761685192396,4.18233778,3982.1,3982.0,0.002]
[1761685193521,4.58784178,3982.1,3982.0,0.002]
[1761685200547,4.58784178,3982.1,3981.6,0.02461931]
[1761685200548,2.51275221,3979.7,3979.2,1e-08]
[1761685200839,12.6618306,3979.7,3979.2,1e-08]
[1761685201044,12.9859306,3979.7,3979.2,1e-08]
[1761685201197,2.91850879,3979.3,3979.2,1e-08]
[1761685201402,12.66208318,3979.3,3979.2,1e-08]
[1761685201634,12.98618318,3979.3,3979.2,1e-08]
[1761685201836,7.08380879,3979.3,3979.2,1e-08]
[1761685202334,2.91869826,3979.0,3978.9,1e-08]
[1761685202536,1.960704,3979.2,3977.2,0.1364]
[1761685202537,1.960704,3977.6,3977.2,0.1364]
[1761685202734,2.286,3978.7,3977.6,0.4431]
[1761685202936,4.06927884,3977.6,3977.1,0.002]
[1761685203233,1.5552,3977.6,3977.1,0.1384]
[1761685203435,1.5552,3977.6,3977.5,0.4451]
[1761685203600,0.2181,3979.1,3977.5,0.4451]
[1761685203800,0.405504,3978.7,3977.5,0.4451]
[1761685204141,0.2181,3979.1,3977.9,0.4431]
[1761685204314,2.286,3979.0,3977.5,0.002]
[1761685204638,0.405504,3978.8,3977.6,0.4431]
[1761685204796,2.51383312,3978.0,3977.6,0.4431]
[1761685205003,4.47478284,3977.6,3977.5,0.002]
[1761685205642,3.8422,3978.0,3977.5,0.002]
[1761685205815,1.5552,3977.7,3977.5,0.002]
[1761685206020,1.5552,3977.8,3977.1,0.51543]
[1761685206325,2.51414374,3977.5,3977.1,0.81842412]
[1761685206530,2.51414374,3977.5,3976.1,4.80199196]
[1761685206531,0.405504,3977.4,3976.1,2.287]
[1761685206731,2.79139675,3978.6,3976.5,0.4431]
[1761685206908,0.405504,3978.1,3977.3,0.0723]
[1761685207115,2.51356444,3978.5,3977.3,0.0723]
[1761685207459,2.51394977,3977.9,3977.4,0.70176309]
[1761685207610,2.51383642,3978.0,3977.4,0.4431]
[1761685207946,2.51383642,3978.0,3977.5,0.4431]
[1761685208143,2.5137535,3978.2,3977.3,0.0723]
[1761685208330,0.405504,3977.7,3976.4,0.4431]
[1761685208528,0.2175,3978.3,3976.5,0.02514774]
[1761685208742,0.2175,3978.3,3976.4,0.4431]
[1761685208743,1.5552,3977.9,3976.4,0.4431]
[1761685209040,14.75408121,3978.5,3976.4,0.4431]
[1761685209041,2.51337777,3978.8,3976.4,0.4431]
[1761685209345,2.51373313,3978.2,3977.3,2.51426642]
[1761685209540,2.51383955,3978.0,3977.3,0.25142664]
[1761685209748,2.287,3978.3,3977.4,0.5361]
[1761685209922,2.51376975,3978.1,3977.4,0.5361]
[1761685210119,0.2181,3978.9,3977.4,0.5361]
[1761685210325,2.287,3978.8,3978.2,0.2174]
[1761685210520,4.06883647,3978.3,3978.2,0.2174]
[1761685210708,2.51370314,3978.2,3977.9,0.4638]
[1761685210913,2.6394275,3978.0,3977.4,0.0723]
[1761685211215,2.6394275,3978.0,3976.1,1.5552]
[1761685211216,0.1256,3977.4,3976.5,0.4638]
[1761685211521,0.1256,3977.0,3976.5,0.4638]
[1761685211720,2.51464393,3976.8,3976.3,0.4638]
[1761685211926,2.51452136,3976.9,3976.3,0.4638]
[1761685212335,2.51473664,3976.6,3976.3,0.4638]
[1761685212547,0.2158,3976.9,3976.0,0.2174]
[1761685212712,1.5552,3976.7,3976.1,0.4638]
[1761685213045,2.51471189,3976.6,3976.1,0.2766]
[1761685213216,2.51471189,3976.6,3976.0,0.2174]
[1761685213630,2.51465462,3976.7,3976.0,0.2174]
[1761685213814,0.405504,3977.9,3976.0,0.51240086]
[1761685214015,0.1548,3978.1,3976.0,2.73244811]
[1761685214215,0.1344,3978.6,3976.0,0.2174]
[1761685214448,0.69,3978.5,3976.4,2.51481137]
[1761685214647,0.69,3978.5,3976.6,2.51471105]
[1761685214868,2.51324489,3979.0,3976.5,2.287]
[1761685214869,0.1752,3979.2,3977.7,2.51396021]
[1761685215086,0.1752,3979.2,3976.1,2.019]
[1761685215087,2.51313818,3979.1,3978.4,0.1179]
[1761685215391,0.1752,3979.2,3978.4,0.1179]
[1761685215591,2.69057425,3979.7,3978.5,0.4638]
[1761685215884,2.51311549,3979.2,3978.5,0.2838]
[1761685216191,0.1791,3978.6,3977.0,0.1179]
[1761685216358,0.405504,3978.5,3977.1,2.287]
[1761685216545,0.405504,3978.5,3977.5,2.51414204]
[1761685216546,2.51367088,3978.3,3977.5,2.51414204]
[1761685216880,2.51367088,3978.3,3977.3,2.51424233]
[1761685216881,1.5552,3978.7,3977.6,2.51405077]
[1761685217175,1.5552,3978.7,3977.3,2.51421173]
[1761685217176,0.4369,3978.7,3977.3,2.51421173]
[1761685217375,0.405504,3978.8,3977.6,2.51402167]
[1761685217575,0.405504,3978.8,3977.2,0.24049]
[1761685217576,0.405504,3978.6,3977.2,0.24049]
[1761685217787,0.405504,3978.6,3977.1,2.287]
[1761685218079,2.51389427,3977.9,3977.1,4.80138347]
[1761685218259,2.51396631,3977.8,3977.1,4.80138347]
[1761685218453,2.51397193,3977.8,3977.1,2.287]
[1761685218659,2.91914047,3978.3,3977.2,2.51433169]
[1761685218859,0.2364,3978.9,3977.3,0.02514268]
[1761685219172,1.5552,3978.6,3977.3,2.97804828]
[1761685219369,0.1185,3978.9,3977.3,0.4638]